[Event "GER-ch Youth-ODJM 2022 A"]
[Site "Willingen"]
[Date "2022.06.08"]
[Round "5.14"]
[White "Kracht, Raphael"]
[Black "Fuchs, Florian"]
[Result "1-0"]
[ECO "B21"]
[WhiteElo "2086"]
[BlackElo "2320"]
[Annotator "TA"]
[PlyCount "59"]
[EventDate "2022.06.05"]
[EventType "swiss"]
[EventRounds "9"]
[EventCountry "GER"]
[SourceTitle "playchess.com"]
[Source "ChessBase"]
[SourceQuality "1"]
[TimeControl "40/4500+30:900+30"]

{[%evp 9,58,15,12,20,11,39,72,0,0,-21,-24,-1,-11,-6,10,7,14,-25,-20,-62,-35,-45,0,-32,-20,-34,0,-32,-19,-21,14,8,78,79,141,154,236,226,238,229,238,225,518,491,29978,29979,29979,29980,29998,29999,29999]} 1. e4 {[%emt 0:00:00]} c5 {[%emt 0:00:00]} 2. d4 {[%emt 0:00:00]} cxd4 {[%emt 0:00:00]} 3. c3 {[%emt 0:00:00]} e5 {[%emt 0:00:00]} 4. Nf3 {[%emt 0:00:00]} Nc6 {[%emt 0:00:00]} 5. Bc4 {[%emt 0:00:00]} Nf6 {[%emt 0:00:00]} 6. Ng5 {[%emt 0:00:00] B21: Sicilian: 2 f4 and Morra Gambit.} d5 {[%emt 0:00:00]} 7. exd5 {[%emt 0:00:00]} Nxd5 {[%emt 0:00:00]} 8. Qf3 {[%emt 0:00:00]} ({White should try} 8. O-O $16) 8... Be6 $11 {[%emt 0:00:00]} 9. O-O {[%emt 0:00:00]} Qd7 {[%emt 0:00:00]} 10. Nxe6 {[%emt 0:00:00]} fxe6 {[%emt 0:00:00] [#]} 11. Nd2 $146 {[%emt 0:00:00]} ({Predecessor:} 11. Bg5 Qf7 12. Qe4 h6 13. Bh4 Qf4 14. Re1 Qxe4 15. Rxe4 Bd6 16. cxd4 Nxd4 17. Nc3 Nxc3 18. bxc3 {½-½ (25) Kazakov,M (2456)-Konovalov,N (2443) Lvov 2006}) 11... Qf7 {[%emt 0:00:00]} 12. Qg3 {[%emt 0:00:00]} Be7 {[%emt 0:00:40]} 13. Ne4 {[%emt 0:00:00][%mdl 1024] White has compensation.} O-O {[%emt 0:00:52]} 14. Bg5 {[%emt 0:03:18]} Na5 {[%emt 0:22:41]} 15. Bd3 {[%emt 0:11:55]} ({Much worse is} 15. Bxd5 exd5 16. Bxe7 (16. Qxe5 $2 Nc6 $19) 16... Qxe7 $17) 15... Nf4 {[%emt 0:01:05]} 16. Rad1 {[%emt 0:03:22]} Nxd3 {[%emt 0:06:10]} 17. Rxd3 {[%emt 0:00:05]} Bxg5 {[%emt 0:00:54]} 18. Qxg5 {[%emt 0:12:07]} Qf5 {[%emt 0:16:56]} 19. Re1 {[%emt 0:00:28]} Qxg5 {[%emt 0:01:01]} (19... Nc6 {seems wilder.} 20. Qg3 Rad8 21. Rf3 Qh5) 20. Nxg5 {[%emt 0:00:06]} Nc4 {[%emt 0:00:03]} (20... dxc3 $11 21. Rxc3 Rac8) 21. cxd4 $16 {[%emt 0:00:55]} Rfd8 {[%emt 0:04:25]} (21... Nxb2 $142 22. Rb3 Nc4) 22. b3 {[%emt 0:03:20] White is more active.} Na5 {[%emt 0:04:14]} (22... Nd6 $16 23. Nxe6 (23. dxe5 Nf7 $16) 23... e4) 23. Nxe6 $18 {[%emt 0:05:04]} Rd6 {[%emt 0:01:15]} 24. d5 {[%emt 0:01:07]} ({Don't play} 24. Rxe5 Nc6 25. Re4 Rc8) 24... Rc8 {[%emt 0:02:29]} 25. h4 {[%emt 0:06:33]} Rc2 $2 {[%emt 0:00:43]} (25... Nc6 26. a3 Re8) 26. Rf3 {[%emt 0:00:14][%csl Ge6][%cal Rf3f8] [#]} h5 {[%emt 0:01:42]} (26... Rc8 $18 27. Rxe5 h6) 27. Rf8+ {[%emt 0:00:16] White mates.} Kh7 {[%emt 0:00:05]} 28. Rxe5 {[%emt 0:00:04]} Rxa2 {[%emt 0:01:59]} 29. Rxh5+ {[%emt 0:00:25]} Kg6 {[%emt 0:00:04]} 30. Nf4# {Weighted Error Value: White=0.11 (very precise) /Black=0.68} 1-0

[Event "GER-ch Youth-ODJM 2022 A"]
[Site "Willingen"]
[Date "2022.06.08"]
[Round "5.15"]
[White "Gerlach, Felix"]
[Black "Brockmeyer, Tobias"]
[Result "1-0"]
[ECO "A14"]
[WhiteElo "2072"]
[BlackElo "1936"]
[Annotator "TA"]
[PlyCount "59"]
[EventDate "2022.06.05"]
[EventType "swiss"]
[EventRounds "9"]
[EventCountry "GER"]
[SourceTitle "playchess.com"]
[Source "ChessBase"]
[SourceQuality "1"]
[TimeControl "40/4500+30:900+30"]

{[%evp 21,58,16,17,15,33,33,67,10,75,67,351,343,320,283,266,275,543,554,727,461,452,458,1668,1636,1939,1283,3187,2851,29992,29993,29994,29995,29995,29995,29996,29997,29998,29999,29999]} 1. c4 {[%emt 0:00:00]} Nf6 {[%emt 0:00:00]} 2. g3 {[%emt 0:00:00]} e6 {[%emt 0:00:00]} 3. Bg2 {[%emt 0:00:00]} d5 {[%emt 0:00:00]} 4. Nf3 {[%emt 0:00:00]} Be7 {[%emt 0:00:00]} 5. O-O {[%emt 0:00:00]} O-O {[%emt 0:00:00]} 6. b3 {[%emt 0:00:00]} b6 {[%emt 0:00:00]} 7. Bb2 {[%emt 0:00:00]} c5 {[%emt 0:00:00]} 8. e3 {[%emt 0:00:00]} Bb7 {[%emt 0:00:00]} 9. Nc3 {[%emt 0:00:00]} Nbd7 {[%emt 0:00:00]} 10. Qe2 {[%emt 0:00:00]} Rc8 {[%emt 0:00:00]} 11. d3 {[%emt 0:00:00]} Qc7 {[%emt 0:02:24]} 12. Nh4 {[%emt 0:00:00] A14: English Opening: 1...e6 with b3 by White.} Rfd8 {[%emt 0:08:06]} 13. f4 {[%emt 0:00:00] [#]} Qb8 $146 {[%emt 0:28:20]} ({Predecessor:} 13... dxc4 14. bxc4 Bxg2 15. Nxg2 Nb8 16. g4 Nc6 17. g5 Nd7 18. Ne4 Bf8 19. Rf3 Be7 {1-0 (44) Elias Reyes,J (2300)-Cabrera Gonzalez,M (1987) Santa Clara 2018}) 14. g4 {[%emt 0:25:42] White is more active.} (14. Rad1 $14) 14... dxc4 {[%emt 0:08:56]} (14... d4 $11 {keeps the balance.} 15. Nd1 Nf8) 15. bxc4 $16 {[%emt 0:01:33]} e5 $2 {[%emt 0:00:24][%mdl 8192]} (15... Bxg2 $14 16. Qxg2 Ne8) 16. Bxb7 {[%emt 0:05:24]} Qxb7 {[%emt 0:00:11]} 17. g5 {[%emt 0:00:12]} Ne8 {[%emt 0:01:39]} 18. Nd5 {[%emt 0:02:40]} Bd6 {[%emt 0:06:28]} (18... Nf8 19. Nf5 (19. Bxe5 Rxd5 20. cxd5 Qxd5 $18) 19... Rxd5) 19. Nf5 $18 {[%emt 0:01:28]} Rb8 {[%emt 0:06:01]} 20. Nxd6 {[%emt 0:06:32]} Nxd6 {[%emt 0:00:33]} 21. fxe5 {[%emt 0:00:05]} Ne8 {[%emt 0:01:58] [#]} (21... Nxc4 $142 22. dxc4 Nf8) 22. Rxf7 $3 {[%emt 0:03:31][%mdl 512] Strongly threatening Qf3.} Kxf7 {[%emt 0:04:25]} (22... Nf8 23. Rxb7) 23. Qh5+ {[%emt 0:09:31]} Kg8 {[%emt 0:10:34] [#]} 24. Ne7+ $1 {[%emt 0:01:09]} Kh8 {[%emt 0:00:38]} 25. Rf1 {[%emt 0:00:56][%cal Ba1f1,Bf1f6,Bf6f8][%mdl 32] White mates.} ({Not} 25. Qf7 Nc7 $18) 25... b5 {[%emt 0:05:51]} 26. g6 {[%emt 0:07:57][%csl Gg6][%cal Rh5h7]} h6 {[%emt 0:01:02]} 27. e6 {[%emt 0:00:41][%cal Rh5h6]} Ndf6 {[%emt 0:00:57] [#]} 28. Rxf6 $1 {[%emt 0:00:42][%cal Rf6f8][%mdl 512]} Qxe7 {[%emt 0:00:31] [#]} (28... Qh1+ 29. Kxh1) 29. Qxh6+ $3 {[%emt 0:01:01][%mdl 576] Back Rank} gxh6 {[%emt 0:00:09]} (29... Kg8 30. Qh7#) 30. Rf8# $1 {White took control after the opening.  Weighted Error Value: White=0.28 (precise) /Black=0.92} 1-0

[Event "GER-ch Youth-ODJM 2022 A"]
[Site "Willingen"]
[Date "2022.06.08"]
[Round "5.16"]
[White "Gallasch, Robin"]
[Black "Lohr, Maximilian"]
[Result "0-1"]
[ECO "A45"]
[WhiteElo "2063"]
[BlackElo "2080"]
[Annotator "TA"]
[PlyCount "43"]
[EventDate "2022.06.05"]
[EventType "swiss"]
[EventRounds "9"]
[EventCountry "GER"]
[SourceTitle "playchess.com"]
[Source "ChessBase"]
[SourceQuality "1"]
[TimeControl "40/4500+30:900+30"]

{[%evp 9,43,18,60,51,103,64,104,36,55,43,39,25,103,64,72,39,104,-11,0,-75,0,0,0,-41,128,162,154,147,158,-58,113,110,100,-595,-596,-1492]} 1. d4 {[%emt 0:00:00]} Nf6 {[%emt 0:00:00]} 2. Nc3 {[%emt 0:00:00]} d5 {[%emt 0:00:00]} 3. Bf4 {[%emt 0:00:00]} e6 {[%emt 0:00:00]} 4. e3 {[%emt 0:00:00]} Be7 {[%emt 0:00:00]} 5. g4 {[%emt 0:00:00][%cal Bg2g4,Bg4g5][%mdl 32]} b6 {[%emt 0:03:16]} 6. g5 {[%emt 0:08:50] D00: 1 d4 d5: Unusual lines.} Nfd7 {[%emt 0:01:10] [#]} ({Black should try} 6... Ne4 $14) 7. h4 $146 {[%emt 0:00:27][%cal Bh2h4,Bh4h5][%mdl 32]} ({Predecessor:} 7. Qh5 Ba6 8. Nb5 Bxb5 9. Bxb5 a6 10. Bd3 g6 11. Qh6 Bf8 12. Qh3 Bg7 13. Nf3 {0-1 (39) Ellenbroek,T (2090)-Van der Weide,K (2450) Enschede 1998}) 7... Bb7 {[%emt 0:01:18]} 8. Nf3 {[%emt 0:08:11]} ({Better is} 8. Nb5 $16 e5 9. dxe5 (9. Bxe5 Nxe5 10. dxe5 Nd7 $14)) 8... a6 $14 {[%emt 0:03:56]} 9. Bh3 {[%emt 0:10:35]} c5 {[%emt 0:02:05]} 10. Qe2 {[%emt 0:08:08]} Nc6 {[%emt 0:00:40]} (10... b5 $1 $11) 11. h5 {[%emt 0:01:22]} b5 {[%emt 0:03:45]} 12. O-O-O {[%emt 0:05:49][%cal Og5g6]} (12. g6 $5 {[%cal Rg6f7]}) 12... Qa5 {[%emt 0:04:38]} (12... b4 $14 13. Na4 Qa5) 13. e4 {[%emt 0:10:10]} ({White has to play} 13. g6 $1 $16 {[%cal Rg6f7]} f5 14. Kb1) 13... dxe4 {[%emt 0:20:00]} (13... b4 $2 14. Nxd5 $1 {[%mdl 512]} b3 15. Nc7+ (15. axb3 cxd4 16. Kb1 exd5 $18) 15... Kf8 16. cxb3 (16. Nxa8 $2 bxa2 17. c3 a1=Q+ $19) 16... cxd4 17. Nxd4 Nxd4 18. Rxd4 Bxg5 19. Qd2 (19. Nxa8 Bxf4+ 20. Kb1 Ke7 $16) (19. Bxg5 Qxc7+ 20. Kb1 h6 $18) 19... Qxd2+ 20. Bxd2 Bxd2+ 21. Kxd2 $18) 14. Qxe4 {[%emt 0:05:44]} (14. d5 $1 $11 {was the only way to keep the balance.} exf3 15. Qe3) 14... cxd4 {[%emt 0:02:20]} (14... Nd8 $17 15. d5 b4) 15. Nxd4 $11 {[%emt 0:01:44]} Nd8 $36 {[%emt 0:02:48][%mdl 2048] Black is more active.} 16. Qe3 {[%emt 0:05:14][%cal Od4f5] Threatens to win with Nf5!} Nc5 $2 {[%emt 0:08:14]} (16... Bxh1 $15 17. Rxh1 b4) 17. Rhe1 $16 {[%emt 0:02:42]} b4 {[%emt 0:01:15] [#]} 18. Nf5 $3 {[%emt 0:03:20][%cal Oe3d4][%mdl 512] Strongly threatening Qd4!} bxc3 {[%emt 0:01:36] [#]} 19. Nxe7 $2 {[%emt 0:00:19]} (19. Qd4 $1 $16 exf5 20. Rxe7+ Kxe7 21. Bd6+ Ke8 22. Qxg7 cxb2+ 23. Kb1) 19... cxb2+ $2 {[%emt 0:02:19]} (19... Qb4 $1 $15 20. bxc3 Qa3+ 21. Kd2 (21. Kb1 {leads to mate.} Na4 22. Rxd8+ Rxd8 23. Qc1 Nxc3+ 24. Ka1 Qxa2#) 21... Ne4+ 22. Ke2 Qxe7) 20. Kb1 {[%emt 0:01:19]} Ne4 {[%emt 0:00:55] [#] And now ...Nc3+ would win.} 21. Be5 {[%emt 0:04:24][%mdl 8192] Inhibits Nc3+.} Qxe5 $19 {[%emt 0:00:34]} 22. Bf1 {Weighted Error Value: White=0.74/Black=0.50} 0-1

[Event "GER-ch Youth-ODJM 2022 A"]
[Site "Willingen"]
[Date "2022.06.08"]
[Round "5.17"]
[White "Dornieden, Jonas"]
[Black "Kliashtornyi, Arkadii"]
[Result "1-0"]
[ECO "C00"]
[WhiteElo "2069"]
[BlackElo "1755"]
[Annotator "TA"]
[PlyCount "49"]
[EventDate "2022.06.05"]
[EventType "swiss"]
[EventRounds "9"]
[EventCountry "GER"]
[SourceTitle "playchess.com"]
[Source "ChessBase"]
[SourceQuality "1"]
[TimeControl "40/4500+30:900+30"]

{[%evp 9,49,25,33,27,28,29,40,31,40,48,51,33,44,47,47,41,28,0,26,0,56,33,81,102,109,52,295,290,398,373,367,379,29993,29994,29994,29995,29995,29993,29996,29997,29998,29999]} 1. e4 {[%emt 0:00:00]} e6 {[%emt 0:00:00]} 2. d4 {[%emt 0:00:00]} d5 {[%emt 0:00:00]} 3. Bd3 {[%emt 0:00:00]} Nf6 {[%emt 0:00:00]} 4. e5 {[%emt 0:00:00]} Nfd7 {[%emt 0:00:00]} 5. f4 {[%emt 0:00:00]} c5 {[%emt 0:00:00]} 6. c3 {[%emt 0:00:00] Active counter play! C01: French: Exchange Variation.} Nc6 {[%emt 0:00:00]} 7. Nf3 {[%emt 0:00:00]} Be7 {[%emt 0:00:00]} 8. O-O {[%emt 0:00:00] White is slightly better.} O-O {[%emt 0:00:00]} 9. Be3 {[%emt 0:00:00] [#]} g6 $146 {[%emt 0:07:45]} ({Predecessor:} 9... f6 10. Nbd2 b6 11. Qe2 a6 12. Kh1 Bb7 13. Bf2 Qe8 14. Rae1 f5 15. Rg1 c4 {0-1 (42) Neuschmied,S (2268)-Kozissnik,C (2023) Playchess.com INT 2020}) 10. Kh1 {[%emt 0:15:07]} cxd4 {[%emt 0:12:09]} 11. cxd4 {[%emt 0:00:59]} Nb6 {[%emt 0:02:06]} 12. Nbd2 {[%emt 0:05:48]} Bd7 {[%emt 0:03:28]} 13. Ng5 {[%emt 0:04:34]} h6 {[%emt 0:03:45]} 14. Nh3 {[%emt 0:10:47]} Kg7 {[%emt 0:06:24]} (14... Nb4 $11 15. Be2 Rc8) 15. g4 {[%emt 0:08:39] And now f5 would win.} f5 {[%emt 0:12:07]} (15... Nb4 $14 16. Bb1 Nc4) 16. exf6+ $16 {[%emt 0:03:00]} Bxf6 {[%emt 0:02:41] [#]} 17. Nf3 {[%emt 0:03:05]} (17. g5 $1 $16 {Hoping for Qe2.} Bxd4 18. Bxd4+ Nxd4 19. gxh6+ Kh8 20. Bxg6) 17... Nb4 $2 {[%emt 0:04:05] A mistake that costs the game.} ({Black should play} 17... Nc4 $14 18. Bxc4 dxc4) 18. g5 $18 {[%emt 0:04:28]} hxg5 {[%emt 0:01:37]} 19. fxg5 {[%emt 0:00:12]} Be7 {[%emt 0:01:18]} 20. Bxg6 {[%emt 0:01:27] Ne5 is the strong threat.} ({Not} 20. Ne5 Nc4 21. Rxf8 (21. Nxc4 Nxd3 22. Qxd3 dxc4 $17) (21. Bxg6 Rxf1+ 22. Qxf1 Nxe5 $18) (21. Bxc4 dxc4 22. Rxf8 Qxf8 $16) 21... Bxf8 $18) 20... Kxg6 $2 {[%emt 0:02:03] [#]} (20... Nc4 $18) 21. Ne5+ {[%emt 0:00:57] White mates.} Kg7 {[%emt 0:00:52]} 22. Qh5 {[%emt 0:00:18]} Qe8 {[%emt 0:01:24]} 23. Qh6+ {[%emt 0:00:15]} Kg8 {[%emt 0:00:07]} 24. g6 {[%emt 0:00:18][%csl Gg6][%cal Rh6h7]} Rf6 {[%emt 0:02:12]} 25. Qh7+ {[%emt 0:00:11] Weighted Error Value: White=0.09 (flawless) /Black=0.58} 1-0

[Event "GER-ch Youth-ODJM 2022 A"]
[Site "Willingen"]
[Date "2022.06.08"]
[Round "5.18"]
[White "Weigand, Anton"]
[Black "Bartelt, Max Peter"]
[Result "1-0"]
[ECO "C00"]
[WhiteElo "1872"]
[BlackElo "1959"]
[Annotator "TA"]
[PlyCount "53"]
[EventDate "2022.06.05"]
[EventType "swiss"]
[EventRounds "9"]
[EventCountry "GER"]
[SourceTitle "playchess.com"]
[Source "ChessBase"]
[SourceQuality "1"]
[TimeControl "40/4500+30:900+30"]

{[%evp 9,53,21,20,28,27,25,55,38,49,54,64,62,92,77,97,80,186,176,363,371,360,366,602,606,612,520,399,246,537,530,685,669,637,649,29986,29987,29989,29990,29994,29995,29995,29996,29996,29992,29997,29998]} 1. e4 {[%emt 0:00:00]} e6 {[%emt 0:00:00]} 2. d4 {[%emt 0:00:00]} d5 {[%emt 0:00:00]} 3. Bd3 {[%emt 0:00:00]} Nf6 {[%emt 0:00:00]} 4. e5 {[%emt 0:00:00]} Nfd7 {[%emt 0:00:00]} 5. f4 {[%emt 0:00:00]} c5 {[%emt 0:00:00]} 6. c3 {[%emt 0:00:00] Active counter play! C01: French: Exchange Variation.} Nc6 {[%emt 0:00:00]} 7. Nf3 {[%emt 0:00:00]} cxd4 {[%emt 0:00:00]} 8. cxd4 {[%emt 0:00:00] White is slightly better.} Qb6 {[%emt 0:00:00]} 9. Be2 {[%emt 0:00:00]} Bb4+ {[%emt 0:00:00]} 10. Nc3 {[%emt 0:00:00]} O-O {[%emt 0:00:00]} 11. O-O {[%emt 0:00:00]} f6 {[%emt 0:00:00]} 12. Kh1 {[%emt 0:00:00] [#]} g5 $146 {[%emt 0:00:00]} (12... Qd8 $16) ({Predecessor:} 12... fxe5 13. fxe5 h6 14. a3 Be7 15. b4 a6 16. Na4 Qd8 17. Be3 b6 18. Rc1 Bb7 {1-0 (36) Onischuk,V (2622)-Altman,J (1926) Chess.com INT 2020}) 13. exf6 {[%emt 0:09:17]} ({Don't do} 13. fxg5 $6 fxe5 14. Be3 a6 $14) 13... Nxf6 $2 {[%emt 0:04:07] [#]} (13... g4) 14. fxg5 $18 {[%emt 0:03:34]} Ne4 {[%emt 0:00:05]} 15. Bd3 {[%emt 0:24:04]} Nxc3 {[%emt 0:29:52]} (15... Bxc3 16. bxc3 Qa5) 16. bxc3 {[%emt 0:03:26]} Bxc3 {[%emt 0:00:05]} 17. Bxh7+ {[%emt 0:00:10]} Kxh7 {[%emt 0:00:03]} 18. Qd3+ {[%emt 0:00:31]} Kg7 $2 {[%emt 0:00:04]} (18... Rf5 {is a better defense.}) 19. Qxc3 {[%emt 0:00:45]} Bd7 {[%emt 0:02:37]} 20. Ba3 {[%emt 0:05:53]} Rf5 {[%emt 0:01:27]} 21. Nh4 {[%emt 0:06:17]} Rxf1+ {[%emt 0:04:19]} 22. Rxf1 {[%emt 0:00:21] White mates.} Qxd4 {[%emt 0:02:57] [#]} 23. Qf3 $1 {[%emt 0:07:59]} Qxh4 {[%emt 0:01:36]} (23... Ne5 24. Qf6+) 24. Qf6+ {[%emt 0:00:51]} Kg8 {[%emt 0:00:42]} 25. Bf8 {[%emt 0:00:22][%csl Gf8][%cal Rf6g7]} Qd4 {[%emt 0:02:25]} 26. Qf7+ {[%emt 0:02:02]} Kh8 {[%emt 0:00:04]} 27. g6 {[%emt 0:00:07] Black did not feel at home in the position after the opening.  Weighted Error Value: White=0.15 (very precise) /Black=0.87} 1-0

[Event "GER-ch Youth-ODJM 2022 A"]
[Site "Willingen"]
[Date "2022.06.08"]
[Round "5.20"]
[White "Hofmann, Lorenz"]
[Black "Fock, Amina"]
[Result "1-0"]
[ECO "B94"]
[WhiteElo "2056"]
[BlackElo "1790"]
[Annotator "TA"]
[PlyCount "53"]
[EventDate "2022.06.05"]
[EventType "swiss"]
[EventRounds "9"]
[EventCountry "GER"]
[SourceTitle "playchess.com"]
[Source "ChessBase"]
[SourceQuality "1"]
[TimeControl "40/4500+30:900+30"]

{[%evp 13,53,25,21,18,80,29,29,27,47,-8,21,0,86,63,66,64,147,150,177,174,171,175,470,443,503,146,541,524,534,537,714,355,696,692,1940,1941,29975,6820,29984,29985,29983,29979]} 1. e4 {[%emt 0:00:00]} c5 {[%emt 0:00:00]} 2. Nf3 {[%emt 0:00:00]} d6 {[%emt 0:00:00]} 3. d4 {[%emt 0:00:00]} cxd4 {[%emt 0:00:00]} 4. Nxd4 {[%emt 0:00:00]} Nf6 {[%emt 0:00:00]} 5. Nc3 {[%emt 0:00:00]} a6 {[%emt 0:00:00]} 6. Bg5 {[%emt 0:00:00]} Nbd7 {[%emt 0:00:00]} 7. Bc4 {[%emt 0:00:00] 7.Qe2 is the recent fashion.} e6 {[%emt 0:00:00]} 8. Qe2 {[%emt 0:00:00] B94: Sicilian Najdorf: 6 Bg5 Nbd7.} Qa5 {[%emt 0:00:49] [#]} (8... h6 $11 9. Bd2 b5) 9. Bxf6 {[%emt 0:00:00]} (9. f4 $1 $16) 9... Nxf6 $11 {[%emt 0:01:10] [#]} 10. O-O-O $146 {[%emt 0:00:00] White has an edge.} ({Predecessor:} 10. Bb3 Be7 11. O-O-O O-O 12. f4 Nd7 13. e5 Nc5 14. Kb1 dxe5 15. fxe5 Bd7 16. Bc4 Qc7 17. Rhe1 b5 18. Bd3 {0-1 (44) Garcia Martinez,S (2450)-Martinovic,S (2475) Baku 1980}) 10... Be7 {[%emt 0:05:32]} 11. Kb1 {[%emt 0:00:00]} (11. f4 $14) 11... O-O {[%emt 0:02:02]} (11... b5 {is more complex.} 12. Nc6 Qb6 13. Bd5 Bf8) 12. f4 {[%emt 0:00:00]} Bd7 {[%emt 0:06:03]} (12... b5 $11 {remains equal.} 13. Nc6 Qc7 14. Nxe7+ Qxe7) 13. Bb3 {[%emt 0:04:09]} Ne8 {[%emt 0:08:17]} 14. g4 {[%emt 0:04:44]} b5 {[%emt 0:03:33] [#]} ({Black should try} 14... Qc5 $14) 15. f5 $1 $16 {[%emt 0:18:24][%cal Rf5e6] White is more active.} Nc7 {[%emt 0:05:49] Strongly threatening ...b4.} 16. fxe6 {[%emt 0:12:46]} fxe6 {[%emt 0:00:45] Threatens to win with ...b4.} 17. Nf5 $1 {[%emt 0:01:54]} Bf6 {[%emt 0:07:46]} (17... Rae8) 18. Rxd6 $18 {[%emt 0:02:48]} b4 {[%emt 0:09:06]} 19. Nd5 $2 {[%emt 0:07:04]} (19. Rxd7 $18 {has better winning chances.} bxc3 20. g5) 19... exd5 $2 {[%emt 0:08:02][%mdl 8192] This costs Black the game.} (19... Nxd5 $16 20. exd5 (20. Rxd7 Nf4 $16) 20... exf5) 20. Rxd7 {[%emt 0:00:41] And now g5 would win.} Rad8 {[%emt 0:00:13]} 21. Rxd8 {[%emt 0:01:22]} Rxd8 {[%emt 0:00:14]} 22. Rd1 {[%emt 0:00:33]} (22. g5 $142 Bxg5 23. Rg1) 22... Kf8 $2 {[%emt 0:06:49]} (22... Qb5 23. Qe3 Qe8) 23. Rf1 {[%emt 0:06:25]} Nb5 {[%emt 0:04:55]} 24. e5 {[%emt 0:04:29][%cal Be4e5,Be5f6][%mdl 32]} Re8 {[%emt 0:00:58] [#]} 25. Nxg7 $1 {[%emt 0:01:25][%mdl 512]} Kxg7 {[%emt 0:05:07]} (25... Nd6 26. Nxe8) 26. exf6+ {[%emt 0:00:50][%mdl 64] Discovered Attack} Kf8 {[%emt 0:00:05]} 27. Qd2 {[%emt 0:00:21] Weighted Error Value: White=0.64/Black=1.51} 1-0

[Event "GER-ch Youth-ODJM 2022 A"]
[Site "Willingen"]
[Date "2022.06.08"]
[Round "5.21"]
[White "Kamp, Adrian"]
[Black "Pick, Max"]
[Result "0-1"]
[ECO "B01"]
[WhiteElo "1969"]
[BlackElo "1841"]
[Annotator "TA"]
[PlyCount "64"]
[EventDate "2022.06.05"]
[EventType "swiss"]
[EventRounds "9"]
[EventCountry "GER"]
[SourceTitle "playchess.com"]
[Source "ChessBase"]
[SourceQuality "1"]
[TimeControl "40/4500+30:900+30"]

{[%evp 12,64,100,93,123,123,124,135,120,112,352,366,427,71,79,-258,-112,-375,-349,-499,-484,-467,-270,-266,-269,-664,-663,-985,-992,-1203,-1214,-1161,-1172,-1061,-972,-948,-968,-955,-949,-932,-930,-909,-894,-804,0,-712,-670,-842,-822,-967,-950,-2631,-2551,-29997,-29998]} 1. e4 {[%emt 0:00:00]} d5 {[%emt 0:00:00]} 2. exd5 {[%emt 0:00:00]} Nf6 {[%emt 0:00:00]} 3. d4 {[%emt 0:00:00]} Nxd5 {[%emt 0:00:00]} 4. c4 {[%emt 0:00:00]} Nb6 {[%emt 0:00:00]} 5. Nf3 {[%emt 0:00:00]} Bg4 {[%emt 0:00:00]} 6. c5 {[%emt 0:00:00]} Nd5 {[%emt 0:00:00]} 7. Qb3 $1 {[%emt 0:00:00]} Nc6 {[%emt 0:26:04] B01: Scandinavian Defence.} 8. Qxb7 {[%emt 0:00:00]} Ndb4 {[%emt 0:01:42]} 9. Bb5 {[%emt 0:00:00]} Bd7 {[%emt 0:05:44][%cal Bg4d7,Bd7f5,Bf5d3][%mdl 32] White is clearly better.} 10. d5 $1 {[%emt 0:00:00]} Rb8 $2 {[%emt 0:01:56]} (10... Nc2+ $16 11. Kd1 N6b4) 11. dxc6 $18 {[%emt 0:02:22] [#]} Bf5 $146 {[%emt 0:00:52] [#]} ({Predecessor:} 11... Nc2+ 12. Kd1 Bf5+ 13. Ke2 e5 14. Rd1 Qc8 15. Nc3 Nxa1 16. Nd5 Bxc5 17. Nxc7+ Kf8 18. Qxc8+ Rxc8 19. Nxe5 {1-0 (30) Priasmoro,N (2457)-Cuhendi,S (2422) Yogyakarta 2019}) 12. Nd4 $2 {[%emt 0:18:45]} Bd3 $16 {[%emt 0:06:25] White must now prevent ...e5.} 13. Ba4 $2 {[%emt 0:21:48][%mdl 8192] [#]} e5 {[%emt 0:08:28]} (13... Ba6 $1 $19 {has better winning chances.} 14. Ne2 (14. Qxa7 $2 Ra8 $19) 14... Bxb7 15. cxb7+ c6) 14. Nf3 $2 {[%emt 0:08:26][%mdl 8192]} Bxc5 $19 {[%emt 0:05:49] ...0-0 is the strong threat.} ({Stronger than} 14... Rxb7 15. cxb7+ c6 16. Nxe5 Bxc5 17. Nxc6 Nxc6 18. Bxc6+ Ke7 19. Nc3 $15) 15. Be3 {[%emt 0:02:27]} (15. a3 $142 Nc2+ 16. Bxc2 Bxc2 17. O-O Rxb7 18. cxb7) 15... Bxe3 {[%emt 0:09:12]} 16. fxe3 {[%emt 0:00:14][%cal Ob1c3]} Rxb7 {[%emt 0:01:44]} (16... Ba6 $142 17. Qxa7 Ra8 18. Qxa8 Qxa8) 17. cxb7+ {[%emt 0:00:12]} c6 {[%emt 0:00:14] Threatens to win with ...Ba6.} 18. Nxe5 $2 {[%emt 0:02:48]} (18. a3 Nc2+ 19. Bxc2 Bxc2 20. O-O) 18... O-O {[%emt 0:00:34]} 19. Nd2 {[%emt 0:02:20]} Qg5 {[%emt 0:01:38][%csl LRe3,LRe5,LRg2]} 20. Nxd3 {[%emt 0:01:42]} Qxe3+ {[%emt 0:00:22]} 21. Kd1 {[%emt 0:00:08]} Nxd3 {[%emt 0:00:34]} 22. Kc2 {[%emt 0:00:26]} Nb4+ {[%emt 0:00:56]} 23. Kc1 {[%emt 0:00:30]} Rd8 {[%emt 0:01:55]} 24. Rd1 {[%emt 0:00:27]} Qc5+ {[%emt 0:00:09]} 25. Kb1 {[%emt 0:00:14]} Qf5+ {[%emt 0:00:53]} 26. Kc1 {[%emt 0:00:18]} Nd3+ {[%emt 0:01:43]} 27. Kb1 {[%emt 0:00:10]} Nb4+ $40 {[%emt 0:05:49][%mdl 128] White needs to defend precisely.} 28. Kc1 {[%emt 0:00:15]} Rb8 {[%emt 0:00:22]} 29. Nf3 {[%emt 0:02:07]} Nd3+ {[%emt 0:00:28]} 30. Kb1 {[%emt 0:01:26]} Rxb7 {[%emt 0:00:12][%csl Gd3][%cal Rb7b2]} 31. Bb3 {[%emt 0:00:36] [#]} Rxb3 $1 {[%emt 0:00:15][%mdl 512]} 32. axb3 {[%emt 0:00:09]} (32. Kc2 Rxb2+) 32... Nb4+ {[%emt 0:00:07] Weighted Error Value: White=1.95/Black=0.37} 0-1